[Event "Titled Tuesday Blitz January 17 Early 2023"]
[White "Predke, Alexandr"]
[Black "Cherniaiev, Tykhon"]
[WhiteFideId "24107581"]
[BlackFideId "14182360"]
[WhiteElo "2685"]
[BlackElo "2330"]
[Result "1-0"]
[Round "08"]
[TimeControl "180+2"]
[Date "2023.01.17"]
[WhiteClock "0:00:36"]
[BlackClock "0:00:04"]

1. d4 {[%clk 0:03:00]}  Nf6 {[%clk 0:02:59]} 2. c4 {[%clk 0:03:00]}  e6 {[%clk 0:02:59]} 3. Nc3 {[%clk 0:02:58]}  d5 {[%clk 0:02:59]} 4. Bg5 {[%clk 0:02:56]}  Be7 {[%clk 0:02:57]} 5. e3 {[%clk 0:02:55]}  O-O {[%clk 0:02:58]} 6. Qc2 {[%clk 0:02:54]}  h6 {[%clk 0:02:57]} 7. Bxf6 {[%clk 0:02:46]}  Bxf6 {[%clk 0:02:58]} 8. Nf3 {[%clk 0:02:39]}  c5 {[%clk 0:02:54]} 9. dxc5 {[%clk 0:02:37]}  dxc4 {[%clk 0:02:54]} 10. Bxc4 {[%clk 0:02:36]}  Qa5 {[%clk 0:02:47]} 11. Rc1 {[%clk 0:02:35]}  Nd7 {[%clk 0:02:42]} 12. c6 {[%clk 0:02:31]}  bxc6 {[%clk 0:02:41]} 13. O-O {[%clk 0:02:31]}  Nb6 {[%clk 0:02:02]} 14. Be2 {[%clk 0:02:27]}  Bxc3 {[%clk 0:01:58]} 15. Qxc3 {[%clk 0:02:28]}  Qxa2 {[%clk 0:01:34]} 16. Ra1 {[%clk 0:02:28]}  Qd5 {[%clk 0:01:32]} 17. Rfd1 {[%clk 0:02:28]}  Qh5 {[%clk 0:01:21]} 18. Ra5 {[%clk 0:01:56]}  Nd5 {[%clk 0:01:09]} 19. Qxc6 {[%clk 0:01:56]}  Rb8 {[%clk 0:01:10]} 20. e4 {[%clk 0:01:55]}  Rxb2 {[%clk 0:01:06]} 21. Bf1 {[%clk 0:01:47]}  Nb4 {[%clk 0:00:40]} 22. Qc7 {[%clk 0:01:44]}  Rc2 {[%clk 0:00:31]} 23. Qxa7 {[%clk 0:01:24]}  Qg6 {[%clk 0:00:30]} 24. Qe3 {[%clk 0:01:04]}  Bb7 {[%clk 0:00:27]} 25. Rb5 {[%clk 0:01:03]}  Bxe4 {[%clk 0:00:19]} 26. Rxb4 {[%clk 0:01:03]}  Bxf3 {[%clk 0:00:19]} 27. Qxf3 {[%clk 0:01:02]}  Qg5 {[%clk 0:00:16]} 28. Rg4 {[%clk 0:00:59]}  Qe5 {[%clk 0:00:14]} 29. Rgd4 {[%clk 0:00:54]}  Rcc8 {[%clk 0:00:12]} 30. Rd7 {[%clk 0:00:54]}  Rc7 {[%clk 0:00:11]} 31. h4 {[%clk 0:00:52]}  Rxd7 {[%clk 0:00:10]} 32. Rxd7 {[%clk 0:00:53]}  Qa5 {[%clk 0:00:07]} 33. g3 {[%clk 0:00:52]}  Qa4 {[%clk 0:00:06]} 34. Rb7 {[%clk 0:00:51]}  Qa5 {[%clk 0:00:06]} 35. Kg2 {[%clk 0:00:51]}  Qa4 {[%clk 0:00:05]} 36. h5 {[%clk 0:00:51]}  Qd4 {[%clk 0:00:05]} 37. Bd3 {[%clk 0:00:50]}  Qe5 {[%clk 0:00:04]} 38. Qe4 {[%clk 0:00:48]}  Qxe4+ {[%clk 0:00:04]} 39. Bxe4 {[%clk 0:00:49]}  Rd8 {[%clk 0:00:04]} 40. Bc6 {[%clk 0:00:47]}  Rc8 {[%clk 0:00:04]} 41. Bb5 {[%clk 0:00:47]}  Rd8 {[%clk 0:00:02]} 42. g4 {[%clk 0:00:47]}  Rc8 {[%clk 0:00:02]} 43. f4 {[%clk 0:00:47]}  Rd8 {[%clk 0:00:02]} 44. Kf3 {[%clk 0:00:48]}  Rc8 {[%clk 0:00:02]} 45. Ke4 {[%clk 0:00:48]}  Rd8 {[%clk 0:00:03]} 46. Bd7 {[%clk 0:00:46]}  Ra8 {[%clk 0:00:03]} 47. Ke5 {[%clk 0:00:45]}  Kf8 {[%clk 0:00:02]} 48. Bb5 {[%clk 0:00:44]}  Rd8 {[%clk 0:00:02]} 49. Bd7 {[%clk 0:00:43]}  Ra8 {[%clk 0:00:02]} 50. Kd6 {[%clk 0:00:42]}  Ra6+ {[%clk 0:00:02]} 51. Bc6 {[%clk 0:00:43]}  Ra8 {[%clk 0:00:02]} 52. Rxf7+ {[%clk 0:00:42]}  Kxf7 {[%clk 0:00:03]} 53. Bxa8 {[%clk 0:00:42]}  Kf6 {[%clk 0:00:04]} 54. Be4 {[%clk 0:00:41]}  Kf7 {[%clk 0:00:02]} 55. g5 {[%clk 0:00:41]}  hxg5 {[%clk 0:00:02]} 56. fxg5 {[%clk 0:00:42]}  Kg8 {[%clk 0:00:03]} 57. Kxe6 {[%clk 0:00:42]}  Kh8 {[%clk 0:00:03]} 58. Kf7 {[%clk 0:00:39]}  g6 {[%clk 0:00:04]} 59. h6 {[%clk 0:00:38]}  Kh7 {[%clk 0:00:04]} 60. Bxg6+ {[%clk 0:00:37]}  Kh8 {[%clk 0:00:05]} 61. Bh5 {[%clk 0:00:38]}  Kh7 {[%clk 0:00:05]} 62. g6+ {[%clk 0:00:37]}  Kh8 {[%clk 0:00:03]} 63. g7+ {[%clk 0:00:37]}  Kh7 {[%clk 0:00:04]} 64. g8=Q+ {[%clk 0:00:36]}  Kxh6 {[%clk 0:00:04]} 65. Qg6# {[%clk 0:00:36]} 1-0


[Site "https://www.chess.com"]

[Event "Titled Tuesday Blitz January 17 Early 2023"]
[White "Gholami Orimi, Mahdi"]
[Black "Harshavardhan G B"]
[WhiteFideId "12558486"]
[BlackFideId "25059009"]
[WhiteElo "2420"]
[BlackElo "2408"]
[Result "1-0"]
[Round "08"]
[TimeControl "180+2"]
[Date "2023.01.17"]
[WhiteClock "0:00:14"]
[BlackClock "0:00:07"]

1. d4 {[%clk 0:02:12]}  d5 {[%clk 0:02:51]} 2. c4 {[%clk 0:02:12]}  c6 {[%clk 0:02:50]} 3. Nf3 {[%clk 0:02:12]}  Nf6 {[%clk 0:02:50]} 4. e3 {[%clk 0:02:12]}  e6 {[%clk 0:02:46]} 5. Nc3 {[%clk 0:02:12]}  Nbd7 {[%clk 0:02:45]} 6. Be2 {[%clk 0:02:11]}  Bd6 {[%clk 0:02:43]} 7. O-O {[%clk 0:02:11]}  O-O {[%clk 0:02:43]} 8. b3 {[%clk 0:02:12]}  Ne4 {[%clk 0:02:41]} 9. Bb2 {[%clk 0:02:11]}  f5 {[%clk 0:02:40]} 10. Ne1 {[%clk 0:02:04]}  Rf6 {[%clk 0:02:31]} 11. f4 {[%clk 0:02:01]}  Rh6 {[%clk 0:02:27]} 12. Nf3 {[%clk 0:02:00]}  Ndf6 {[%clk 0:02:23]} 13. Bd3 {[%clk 0:01:55]}  Bd7 {[%clk 0:02:18]} 14. Bxe4 {[%clk 0:01:53]}  fxe4 {[%clk 0:02:16]} 15. Ne5 {[%clk 0:01:51]}  Be8 {[%clk 0:02:15]} 16. h3 {[%clk 0:01:34]}  Bg6 {[%clk 0:02:01]} 17. Rc1 {[%clk 0:01:23]}  Bf5 {[%clk 0:01:54]} 18. Rc2 {[%clk 0:01:23]}  Nh5 {[%clk 0:01:37]} 19. Qe1 {[%clk 0:01:07]}  Be7 {[%clk 0:00:29]} 20. g4 {[%clk 0:00:47]}  Bh4 {[%clk 0:00:28]} 21. Qd1 {[%clk 0:00:42]}  Ng3 {[%clk 0:00:28]} 22. gxf5 {[%clk 0:00:36]}  Nxf1 {[%clk 0:00:26]} 23. Qxf1 {[%clk 0:00:30]}  exf5 {[%clk 0:00:25]} 24. Rg2 {[%clk 0:00:28]}  Bf6 {[%clk 0:00:21]} 25. cxd5 {[%clk 0:00:28]}  cxd5 {[%clk 0:00:19]} 26. Qb5 {[%clk 0:00:28]}  Bxe5 {[%clk 0:00:19]} 27. dxe5 {[%clk 0:00:25]}  Kh8 {[%clk 0:00:15]} 28. Qxd5 {[%clk 0:00:20]}  Qh4 {[%clk 0:00:14]} 29. Qf7 {[%clk 0:00:11]}  Rg8 {[%clk 0:00:13]} 30. Qxf5 {[%clk 0:00:11]}  Qe1+ {[%clk 0:00:12]} 31. Kh2 {[%clk 0:00:12]}  Qxe3 {[%clk 0:00:13]} 32. Nd5 {[%clk 0:00:12]}  Qf3 {[%clk 0:00:10]} 33. Ne7 {[%clk 0:00:12]}  Re8 {[%clk 0:00:08]} 34. e6 {[%clk 0:00:13]}  Rxh3+ {[%clk 0:00:05]} 35. Qxh3 {[%clk 0:00:13]}  Qxh3+ {[%clk 0:00:05]} 36. Kxh3 {[%clk 0:00:14]}  Rxe7 {[%clk 0:00:06]} 37. f5 {[%clk 0:00:15]}  e3 {[%clk 0:00:06]} 38. f6 {[%clk 0:00:14]}  Kg8 {[%clk 0:00:07]} 39. fxe7 {[%clk 0:00:14]} 1-0


[Site "https://www.chess.com"]

[Event "Titled Tuesday Blitz January 17 Early 2023"]
[White "Xu, Yi"]
[Black "Salimova, Nurgyul"]
[WhiteFideId "8605564"]
[BlackFideId "2915138"]
[WhiteElo "2527"]
[BlackElo "2391"]
[Result "1/2-1/2"]
[Round "08"]
[TimeControl "180+2"]
[Date "2023.01.17"]
[WhiteClock "0:00:07"]
[BlackClock "0:00:37"]

1. e4 {[%clk 0:03:00]}  e5 {[%clk 0:02:58]} 2. Nf3 {[%clk 0:03:00]}  Nc6 {[%clk 0:02:58]} 3. Bc4 {[%clk 0:03:01]}  Nf6 {[%clk 0:02:57]} 4. d3 {[%clk 0:03:01]}  Bc5 {[%clk 0:02:55]} 5. O-O {[%clk 0:03:01]}  d6 {[%clk 0:02:55]} 6. c3 {[%clk 0:03:01]}  a6 {[%clk 0:02:52]} 7. a4 {[%clk 0:03:00]}  Ba7 {[%clk 0:02:48]} 8. Nbd2 {[%clk 0:02:58]}  Be6 {[%clk 0:02:37]} 9. Bxe6 {[%clk 0:02:45]}  fxe6 {[%clk 0:02:38]} 10. b4 {[%clk 0:02:45]}  O-O {[%clk 0:02:35]} 11. h3 {[%clk 0:02:36]}  Qe8 {[%clk 0:02:33]} 12. Re1 {[%clk 0:02:35]}  Nh5 {[%clk 0:02:32]} 13. Nf1 {[%clk 0:02:31]}  Qg6 {[%clk 0:02:30]} 14. Be3 {[%clk 0:02:23]}  Nf4 {[%clk 0:02:22]} 15. Bxf4 {[%clk 0:02:23]}  Rxf4 {[%clk 0:02:22]} 16. Ra2 {[%clk 0:02:08]}  Raf8 {[%clk 0:02:21]} 17. N1h2 {[%clk 0:01:52]}  a5 {[%clk 0:02:19]} 18. b5 {[%clk 0:01:48]}  Nb8 {[%clk 0:02:19]} 19. Kh1 {[%clk 0:01:36]}  Nd7 {[%clk 0:02:17]} 20. g3 {[%clk 0:01:32]}  R4f7 {[%clk 0:02:04]} 21. Kg2 {[%clk 0:01:32]}  Qf6 {[%clk 0:01:55]} 22. h4 {[%clk 0:01:16]}  Qg6 {[%clk 0:01:40]} 23. Rf1 {[%clk 0:01:11]}  Bb6 {[%clk 0:01:30]} 24. Ng5 {[%clk 0:01:07]}  Re7 {[%clk 0:01:26]} 25. Qg4 {[%clk 0:00:43]}  h6 {[%clk 0:01:15]} 26. Nh3 {[%clk 0:00:43]}  Qxg4 {[%clk 0:01:11]} 27. Nxg4 {[%clk 0:00:43]}  Nc5 {[%clk 0:01:12]} 28. Rd1 {[%clk 0:00:42]}  Ref7 {[%clk 0:01:03]} 29. h5 {[%clk 0:00:31]}  Nd7 {[%clk 0:00:57]} 30. Ng1 {[%clk 0:00:21]}  Nc5 {[%clk 0:00:55]} 31. Rdd2 {[%clk 0:00:12]}  Nb3 {[%clk 0:00:51]} 32. Rd1 {[%clk 0:00:12]}  Nc5 {[%clk 0:00:52]} 33. Kf1 {[%clk 0:00:07]}  Kh7 {[%clk 0:00:43]} 34. Kg2 {[%clk 0:00:07]}  Kg8 {[%clk 0:00:37]} 1/2-1/2


[Site "https://www.chess.com"]

[Event "Titled Tuesday Blitz January 17 Early 2023"]
[White "Rohith Krishna S"]
[Black "Mitrabha, Guha"]
[WhiteFideId "46617051"]
[BlackFideId "5057000"]
[WhiteElo "2385"]
[BlackElo "2507"]
[Result "0-1"]
[Round "08"]
[TimeControl "180+2"]
[Date "2023.01.17"]
[WhiteClock "0:00:01"]
[BlackClock "0:00:14"]

1. Nf3 {[%clk 0:03:00]}  Nf6 {[%clk 0:02:59]} 2. g3 {[%clk 0:02:56]}  d5 {[%clk 0:02:59]} 3. Bg2 {[%clk 0:02:56]}  Bg4 {[%clk 0:02:59]} 4. O-O {[%clk 0:02:57]}  Nbd7 {[%clk 0:02:59]} 5. d4 {[%clk 0:02:57]}  c6 {[%clk 0:02:58]} 6. Nbd2 {[%clk 0:02:54]}  e6 {[%clk 0:02:57]} 7. c3 {[%clk 0:02:52]}  Be7 {[%clk 0:02:52]} 8. Re1 {[%clk 0:02:52]}  O-O {[%clk 0:02:52]} 9. e4 {[%clk 0:02:53]}  Qb6 {[%clk 0:02:50]} 10. e5 {[%clk 0:02:52]}  Ne8 {[%clk 0:02:50]} 11. Nf1 {[%clk 0:02:47]}  c5 {[%clk 0:02:50]} 12. h3 {[%clk 0:02:45]}  Bh5 {[%clk 0:02:49]} 13. g4 {[%clk 0:02:45]}  Bg6 {[%clk 0:02:49]} 14. Ng3 {[%clk 0:02:45]}  Nc7 {[%clk 0:02:47]} 15. h4 {[%clk 0:02:44]}  h6 {[%clk 0:02:44]} 16. h5 {[%clk 0:02:44]}  Bh7 {[%clk 0:02:44]} 17. g5 {[%clk 0:02:45]}  hxg5 {[%clk 0:02:40]} 18. Nxg5 {[%clk 0:02:46]}  Bxg5 {[%clk 0:02:32]} 19. Bxg5 {[%clk 0:02:46]}  cxd4 {[%clk 0:02:31]} 20. cxd4 {[%clk 0:02:46]}  f6 {[%clk 0:02:31]} 21. exf6 {[%clk 0:02:39]}  Nxf6 {[%clk 0:02:31]} 22. h6 {[%clk 0:02:40]}  gxh6 {[%clk 0:02:26]} 23. Bxh6 {[%clk 0:02:39]}  Qxb2 {[%clk 0:02:25]} 24. Rc1 {[%clk 0:02:02]}  Rf7 {[%clk 0:02:20]} 25. Rxc7 {[%clk 0:01:50]}  Rxc7 {[%clk 0:02:17]} 26. Rxe6 {[%clk 0:01:50]}  Rf7 {[%clk 0:01:54]} 27. Bf4 {[%clk 0:01:25]}  Qb1 {[%clk 0:01:19]} 28. Qxb1 {[%clk 0:01:24]}  Bxb1 {[%clk 0:01:20]} 29. Be5 {[%clk 0:01:24]}  Ne4 {[%clk 0:01:20]} 30. Nh5 {[%clk 0:01:09]}  Rf5 {[%clk 0:00:58]} 31. Rg6+ {[%clk 0:00:52]}  Kh7 {[%clk 0:00:53]} 32. Rg7+ {[%clk 0:00:47]}  Kh6 {[%clk 0:00:54]} 33. Rxb7 {[%clk 0:00:27]}  Kxh5 {[%clk 0:00:42]} 34. Rxb1 {[%clk 0:00:27]}  Rg8 {[%clk 0:00:43]} 35. Rb3 {[%clk 0:00:25]}  Nxf2 {[%clk 0:00:35]} 36. Kf1 {[%clk 0:00:12]}  Ne4+ {[%clk 0:00:28]} 37. Bf3+ {[%clk 0:00:11]}  Rxf3+ {[%clk 0:00:28]} 38. Rxf3 {[%clk 0:00:11]}  Nd2+ {[%clk 0:00:28]} 39. Ke2 {[%clk 0:00:12]}  Nxf3 {[%clk 0:00:29]} 40. Kxf3 {[%clk 0:00:13]}  Rg6 {[%clk 0:00:29]} 41. Kf4 {[%clk 0:00:07]}  Ra6 {[%clk 0:00:26]} 42. Bc7 {[%clk 0:00:07]}  Re6 {[%clk 0:00:23]} 43. Kf5 {[%clk 0:00:03]}  Re2 {[%clk 0:00:22]} 44. Be5 {[%clk 0:00:02]}  Rxa2 {[%clk 0:00:22]} 45. Ke6 {[%clk 0:00:03]}  Ra5 {[%clk 0:00:21]} 46. Bd6 {[%clk 0:00:04]}  Kg5 {[%clk 0:00:19]} 47. Bc5 {[%clk 0:00:04]}  Ra1 {[%clk 0:00:17]} 48. Kxd5 {[%clk 0:00:05]}  a5 {[%clk 0:00:18]} 49. Kc6 {[%clk 0:00:05]}  a4 {[%clk 0:00:15]} 50. d5 {[%clk 0:00:06]}  a3 {[%clk 0:00:15]} 51. d6 {[%clk 0:00:06]}  a2 {[%clk 0:00:15]} 52. Bd4 {[%clk 0:00:03]}  Rd1 {[%clk 0:00:15]} 53. Bh8 {[%clk 0:00:03]}  Kf5 {[%clk 0:00:14]} 54. d7 {[%clk 0:00:03]}  Ke6 {[%clk 0:00:14]} 55. Bb2 {[%clk 0:00:01]}  Rxd7 {[%clk 0:00:14]} 0-1


[Site "https://www.chess.com"]

[Event "Titled Tuesday Blitz January 17 Early 2023"]
[White "Aradhya, Garg"]
[Black "Movahed, Sina"]
[WhiteFideId "25006746"]
[BlackFideId "42520835"]
[WhiteElo "2284"]
[BlackElo "2340"]
[Result "0-1"]
[Round "08"]
[TimeControl "180+2"]
[Date "2023.01.17"]
[WhiteClock "0:00:17"]
[BlackClock "0:00:19"]

1. d4 {[%clk 0:03:00]}  Nf6 {[%clk 0:02:59]} 2. c4 {[%clk 0:03:01]}  g6 {[%clk 0:03:00]} 3. Nf3 {[%clk 0:03:01]}  Bg7 {[%clk 0:03:00]} 4. g3 {[%clk 0:03:01]}  O-O {[%clk 0:03:01]} 5. Bg2 {[%clk 0:03:01]}  d6 {[%clk 0:03:02]} 6. Nc3 {[%clk 0:03:01]}  Nbd7 {[%clk 0:03:02]} 7. O-O {[%clk 0:03:00]}  e5 {[%clk 0:03:03]} 8. h3 {[%clk 0:02:57]}  Re8 {[%clk 0:03:02]} 9. Re1 {[%clk 0:02:57]}  exd4 {[%clk 0:02:59]} 10. Nxd4 {[%clk 0:02:57]}  a5 {[%clk 0:03:00]} 11. Ndb5 {[%clk 0:02:56]}  Ne5 {[%clk 0:02:59]} 12. b3 {[%clk 0:02:51]}  a4 {[%clk 0:02:58]} 13. Rb1 {[%clk 0:02:49]}  axb3 {[%clk 0:02:57]} 14. axb3 {[%clk 0:02:50]}  Re6 {[%clk 0:02:50]} 15. Bg5 {[%clk 0:02:45]}  c6 {[%clk 0:02:46]} 16. Nd4 {[%clk 0:02:26]}  Re8 {[%clk 0:02:44]} 17. Ne4 {[%clk 0:02:25]}  Qe7 {[%clk 0:02:41]} 18. Qc1 {[%clk 0:02:14]}  Ned7 {[%clk 0:02:35]} 19. Qf4 {[%clk 0:02:07]}  h6 {[%clk 0:02:09]} 20. Nxf6+ {[%clk 0:02:03]}  Bxf6 {[%clk 0:01:59]} 21. Bxh6 {[%clk 0:01:54]}  Nc5 {[%clk 0:01:52]} 22. Qd2 {[%clk 0:01:52]}  Ne4 {[%clk 0:01:50]} 23. Bxe4 {[%clk 0:01:37]}  Qxe4 {[%clk 0:01:48]} 24. Nf3 {[%clk 0:01:37]}  Bxh3 {[%clk 0:01:45]} 25. Qxd6 {[%clk 0:01:36]}  Bc3 {[%clk 0:01:43]} 26. Rec1 {[%clk 0:01:27]}  Rad8 {[%clk 0:01:14]} 27. Qf4 {[%clk 0:01:25]}  Qxe2 {[%clk 0:01:12]} 28. Ng5 {[%clk 0:01:10]}  Bf5 {[%clk 0:01:00]} 29. Rxc3 {[%clk 0:01:10]}  Rd1+ {[%clk 0:00:24]} 30. Rxd1 {[%clk 0:01:08]}  Qxd1+ {[%clk 0:00:25]} 31. Kg2 {[%clk 0:01:01]}  f6 {[%clk 0:00:20]} 32. Qc7 {[%clk 0:00:59]}  Bd7 {[%clk 0:00:19]} 33. Qf4 {[%clk 0:00:43]}  fxg5 {[%clk 0:00:17]} 34. Qf6 {[%clk 0:00:42]}  Bh3+ {[%clk 0:00:12]} 35. Kh2 {[%clk 0:00:41]}  Qd7 {[%clk 0:00:09]} 36. Rd3 {[%clk 0:00:40]}  Qh7 {[%clk 0:00:08]} 37. Rd8 {[%clk 0:00:29]}  Bd7 {[%clk 0:00:06]} 38. Qxg5 {[%clk 0:00:28]}  Qf7 {[%clk 0:00:04]} 39. Kg2 {[%clk 0:00:26]}  Qe6 {[%clk 0:00:02]} 40. Rxe8+ {[%clk 0:00:24]}  Bxe8 {[%clk 0:00:03]} 41. Qf4 {[%clk 0:00:24]}  Qf7 {[%clk 0:00:03]} 42. Qe5 {[%clk 0:00:23]}  Bd7 {[%clk 0:00:03]} 43. Qb8+ {[%clk 0:00:20]}  Kh7 {[%clk 0:00:02]} 44. Be3 {[%clk 0:00:20]}  b5 {[%clk 0:00:02]} 45. cxb5 {[%clk 0:00:19]}  cxb5 {[%clk 0:00:03]} 46. Qd6 {[%clk 0:00:19]}  Bf5 {[%clk 0:00:01]} 47. b4 {[%clk 0:00:19]}  Be4+ {[%clk 0:00:02]} 48. Kf1 {[%clk 0:00:19]}  Qf3 {[%clk 0:00:02]} 49. Qe7+ {[%clk 0:00:18]}  Kg8 {[%clk 0:00:03]} 50. Qd8+ {[%clk 0:00:18]}  Kh7 {[%clk 0:00:04]} 51. Qe7+ {[%clk 0:00:18]}  Kg8 {[%clk 0:00:05]} 52. Qe8+ {[%clk 0:00:18]}  Kg7 {[%clk 0:00:05]} 53. Bd4+ {[%clk 0:00:18]}  Kh6 {[%clk 0:00:05]} 54. Qh8+ {[%clk 0:00:17]}  Kg5 {[%clk 0:00:06]} 55. Qh4+ {[%clk 0:00:16]}  Kf5 {[%clk 0:00:06]} 56. Qf6+ {[%clk 0:00:16]}  Kg4 {[%clk 0:00:07]} 57. Qh4+ {[%clk 0:00:15]}  Kf5 {[%clk 0:00:07]} 58. g4+ {[%clk 0:00:15]}  Ke6 {[%clk 0:00:08]} 59. Ke1 {[%clk 0:00:09]}  Bd3 {[%clk 0:00:08]} 60. Qf6+ {[%clk 0:00:04]}  Qxf6 {[%clk 0:00:08]} 61. Bxf6 {[%clk 0:00:04]}  Kxf6 {[%clk 0:00:09]} 62. Kd2 {[%clk 0:00:04]}  Bc4 {[%clk 0:00:09]} 63. Ke3 {[%clk 0:00:04]}  Kg5 {[%clk 0:00:10]} 64. f3 {[%clk 0:00:05]}  Kh4 {[%clk 0:00:11]} 65. Kf4 {[%clk 0:00:05]}  g5+ {[%clk 0:00:11]} 66. Ke5 {[%clk 0:00:04]}  Be2 {[%clk 0:00:12]} 67. f4 {[%clk 0:00:03]}  Kxg4 {[%clk 0:00:12]} 68. f5 {[%clk 0:00:04]}  Bc4 {[%clk 0:00:12]} 69. f6 {[%clk 0:00:04]}  Kf3 {[%clk 0:00:12]} 70. Kd6 {[%clk 0:00:04]}  g4 {[%clk 0:00:13]} 71. Ke7 {[%clk 0:00:05]}  g3 {[%clk 0:00:13]} 72. f7 {[%clk 0:00:06]}  Bxf7 {[%clk 0:00:13]} 73. Kxf7 {[%clk 0:00:07]}  g2 {[%clk 0:00:14]} 74. Ke6 {[%clk 0:00:07]}  g1=Q {[%clk 0:00:15]} 75. Kd5 {[%clk 0:00:08]}  Qb1 {[%clk 0:00:15]} 76. Kc5 {[%clk 0:00:09]}  Qd3 {[%clk 0:00:16]} 77. Kb6 {[%clk 0:00:09]}  Qc4 {[%clk 0:00:17]} 78. Ka5 {[%clk 0:00:10]}  Ke4 {[%clk 0:00:17]} 79. Kb6 {[%clk 0:00:10]}  Kd5 {[%clk 0:00:18]} 80. Ka5 {[%clk 0:00:11]}  Kd6 {[%clk 0:00:17]} 81. Ka6 {[%clk 0:00:12]}  Qxb4 {[%clk 0:00:17]} 82. Kb6 {[%clk 0:00:13]}  Qc5+ {[%clk 0:00:17]} 83. Ka6 {[%clk 0:00:14]}  b4 {[%clk 0:00:18]} 84. Kb7 {[%clk 0:00:15]}  b3 {[%clk 0:00:19]} 85. Ka8 {[%clk 0:00:15]}  b2 {[%clk 0:00:20]} 86. Kb7 {[%clk 0:00:16]}  b1=Q+ {[%clk 0:00:19]} 87. Ka8 {[%clk 0:00:17]}  Qa2+ {[%clk 0:00:19]} 88. Kb7 {[%clk 0:00:17]}  Qaa7# {[%clk 0:00:19]} 0-1


[Site "https://www.chess.com"]

[Event "Titled Tuesday Blitz January 17 Early 2023"]
[White "Bocharov, Dmitry"]
[Black "Galchenko, Matvey"]
[WhiteFideId "4138716"]
[BlackFideId "24175480"]
[WhiteElo "2516"]
[BlackElo "2438"]
[Result "1/2-1/2"]
[Round "08"]
[TimeControl "180+2"]
[Date "2023.01.17"]
[WhiteClock "0:00:15"]
[BlackClock "0:00:09"]

1. d4 {[%clk 0:02:35]}  Nf6 {[%clk 0:02:59]} 2. c4 {[%clk 0:02:35]}  c5 {[%clk 0:02:59]} 3. d5 {[%clk 0:02:34]}  e6 {[%clk 0:02:59]} 4. Nc3 {[%clk 0:02:34]}  exd5 {[%clk 0:03:00]} 5. cxd5 {[%clk 0:02:35]}  d6 {[%clk 0:03:01]} 6. Nf3 {[%clk 0:02:32]}  g6 {[%clk 0:03:01]} 7. Bf4 {[%clk 0:02:31]}  Bg7 {[%clk 0:03:02]} 8. h3 {[%clk 0:02:32]}  O-O {[%clk 0:03:02]} 9. e3 {[%clk 0:02:32]}  Na6 {[%clk 0:03:02]} 10. Bxa6 {[%clk 0:02:31]}  bxa6 {[%clk 0:03:02]} 11. Rc1 {[%clk 0:02:31]}  Re8 {[%clk 0:02:59]} 12. Nd2 {[%clk 0:02:30]}  a5 {[%clk 0:02:53]} 13. O-O {[%clk 0:02:30]}  Ba6 {[%clk 0:02:53]} 14. Re1 {[%clk 0:02:29]}  Rb8 {[%clk 0:02:53]} 15. b3 {[%clk 0:02:28]}  Qe7 {[%clk 0:02:36]} 16. Nc4 {[%clk 0:02:25]}  Bxc4 {[%clk 0:02:34]} 17. bxc4 {[%clk 0:02:26]}  Nd7 {[%clk 0:02:32]} 18. Qa4 {[%clk 0:02:02]}  Rb4 {[%clk 0:02:12]} 19. Qxa5 {[%clk 0:02:01]}  Rxc4 {[%clk 0:02:11]} 20. Nb5 {[%clk 0:02:01]}  Rxc1 {[%clk 0:02:07]} 21. Rxc1 {[%clk 0:02:01]}  Ne5 {[%clk 0:02:03]} 22. Qa6 {[%clk 0:02:00]}  Rd8 {[%clk 0:01:46]} 23. Bg3 {[%clk 0:01:52]}  Rd7 {[%clk 0:01:41]} 24. Qc8+ {[%clk 0:01:49]}  Bf8 {[%clk 0:01:41]} 25. Bxe5 {[%clk 0:01:45]}  dxe5 {[%clk 0:01:41]} 26. e4 {[%clk 0:01:41]}  Rd8 {[%clk 0:01:16]} 27. Qa6 {[%clk 0:01:38]}  Qg5 {[%clk 0:01:15]} 28. Rd1 {[%clk 0:01:24]}  c4 {[%clk 0:01:05]} 29. Qc6 {[%clk 0:01:22]}  Qh5 {[%clk 0:00:56]} 30. Re1 {[%clk 0:01:08]}  Bb4 {[%clk 0:00:55]} 31. Rb1 {[%clk 0:00:57]}  Qe2 {[%clk 0:00:54]} 32. d6 {[%clk 0:00:52]}  Bxd6 {[%clk 0:00:36]} 33. Rc1 {[%clk 0:00:23]}  Ba3 {[%clk 0:00:15]} 34. Qxc4 {[%clk 0:00:18]}  Rd1+ {[%clk 0:00:10]} 35. Kh2 {[%clk 0:00:17]}  Qxc4 {[%clk 0:00:05]} 36. Rxc4 {[%clk 0:00:17]}  Bf8 {[%clk 0:00:05]} 37. Rc7 {[%clk 0:00:17]}  Rd2 {[%clk 0:00:05]} 38. Rxa7 {[%clk 0:00:16]}  Rxf2 {[%clk 0:00:05]} 39. Ra8 {[%clk 0:00:17]}  Kg7 {[%clk 0:00:05]} 40. Nc7 {[%clk 0:00:17]}  Bc5 {[%clk 0:00:04]} 41. a4 {[%clk 0:00:17]}  Ra2 {[%clk 0:00:04]} 42. a5 {[%clk 0:00:17]}  Be3 {[%clk 0:00:04]} 43. a6 {[%clk 0:00:17]}  Bf4+ {[%clk 0:00:03]} 44. Kg1 {[%clk 0:00:18]}  Be3+ {[%clk 0:00:04]} 45. Kf1 {[%clk 0:00:18]}  Rc2 {[%clk 0:00:03]} 46. Ne8+ {[%clk 0:00:18]}  Kh6 {[%clk 0:00:03]} 47. Nd6 {[%clk 0:00:19]}  Ra2 {[%clk 0:00:03]} 48. Nxf7+ {[%clk 0:00:19]}  Kh5 {[%clk 0:00:03]} 49. Nxe5 {[%clk 0:00:20]}  Rf2+ {[%clk 0:00:04]} 50. Ke1 {[%clk 0:00:20]}  Ra2 {[%clk 0:00:05]} 51. Ng4 {[%clk 0:00:20]}  Bb6 {[%clk 0:00:04]} 52. Rb8 {[%clk 0:00:20]}  Rxa6 {[%clk 0:00:04]} 53. Rb7 {[%clk 0:00:21]}  h6 {[%clk 0:00:04]} 54. Ke2 {[%clk 0:00:22]}  Ra2+ {[%clk 0:00:04]} 55. Kd3 {[%clk 0:00:21]}  Bd8 {[%clk 0:00:04]} 56. e5 {[%clk 0:00:21]}  Rxg2 {[%clk 0:00:04]} 57. Rb8 {[%clk 0:00:20]}  Bg5 {[%clk 0:00:04]} 58. Ke4 {[%clk 0:00:17]}  Rg3 {[%clk 0:00:03]} 59. Nf6+ {[%clk 0:00:16]}  Kh4 {[%clk 0:00:04]} 60. Rg8 {[%clk 0:00:11]}  Rxh3 {[%clk 0:00:04]} 61. Rxg6 {[%clk 0:00:11]}  Re3+ {[%clk 0:00:05]} 62. Kf5 {[%clk 0:00:11]}  Re1 {[%clk 0:00:05]} 63. Ne4 {[%clk 0:00:11]}  Rf1+ {[%clk 0:00:05]} 64. Ke6 {[%clk 0:00:12]}  Re1 {[%clk 0:00:06]} 65. Nxg5 {[%clk 0:00:11]}  hxg5 {[%clk 0:00:07]} 66. Kf5 {[%clk 0:00:12]}  Rf1+ {[%clk 0:00:06]} 67. Ke6 {[%clk 0:00:12]}  g4 {[%clk 0:00:06]} 68. Ke7 {[%clk 0:00:12]}  g3 {[%clk 0:00:06]} 69. e6 {[%clk 0:00:13]}  Re1 {[%clk 0:00:06]} 70. Ke8 {[%clk 0:00:14]}  Kh3 {[%clk 0:00:07]} 71. e7 {[%clk 0:00:14]}  g2 {[%clk 0:00:07]} 72. Rh6+ {[%clk 0:00:14]}  Kg3 {[%clk 0:00:07]} 73. Rg6+ {[%clk 0:00:15]}  Kf2 {[%clk 0:00:08]} 74. Kf7 {[%clk 0:00:16]}  Rxe7+ {[%clk 0:00:07]} 75. Kxe7 {[%clk 0:00:15]}  g1=Q {[%clk 0:00:08]} 76. Rxg1 {[%clk 0:00:15]}  Kxg1 {[%clk 0:00:09]} 1/2-1/2


[Site "https://www.chess.com"]